bitfinex/quotes_SOLUSD_20251007
["timestamp","ask_amount","ask_price","bid_price","bid_amount"]
[1759867931941,0.69,223.27,223.24,1.58203805]
[1759867932452,31.66,223.28,223.24,1.58203805]
[1759867932667,99.87403539,224.24,223.24,1.58203805]
[1759867932668,0.69,223.36,223.27,1.58203805]
[1759867932837,0.69,223.38,223.34,1.58203805]
[1759867933042,18.38265307,223.4,223.33,6.05971682]
[1759867933043,32.35,223.37,223.33,6.05971682]
[1759867933371,31.66,223.38,223.36,1.58203805]
[1759867933660,0.69,223.38,223.36,1.58203805]
[1759867933960,31.66,223.39,223.36,1.58203805]
[1759867934158,32.35,223.39,223.36,1.58203805]
[1759867934341,0.69,223.39,223.36,6.05908423]
[1759867935444,0.69,223.39,223.36,4.47704618]
[1759867935651,0.69,223.39,223.36,6.05908423]
[1759867935960,18.38265307,223.4,223.36,6.05908423]
[1759867936160,50.04265307,223.4,223.37,2.25203805]
[1759867937247,18.38265307,223.4,223.37,1.58203805]
[1759867937562,18.38265307,223.4,223.36,4.47704618]
[1759867937757,18.38265307,223.4,223.36,1.58203805]
[1759867937958,19.09265307,223.4,223.36,1.58203805]
[1759867938143,19.09265307,223.4,223.37,4.47687693]
[1759867938566,18.38265307,223.4,223.38,2.29203805]
[1759867938764,18.38265307,223.4,223.38,1.58203805]
[1759867939247,18.38265307,223.4,223.37,6.05891498]
[1759867939564,18.38265307,223.4,223.39,1.58203805]
[1759867939750,18.38265307,223.4,223.39,2.29203805]
[1759867940244,18.38265307,223.4,223.39,6.76851416]
[1759867940871,18.38265307,223.4,223.39,6.05851416]
[1759867941265,18.38265307,223.4,223.39,6.76851416]
[1759867942448,18.38265307,223.4,223.39,6.05851416]
[1759867943258,18.38265307,223.4,223.39,6.76851416]
[1759867944071,18.38265307,223.4,223.39,6.05851416]
[1759867945282,18.38265307,223.4,223.39,4.47647611]
[1759867945777,18.38265307,223.4,223.39,6.05851416]
[1759867946480,18.38265307,223.4,223.39,6.76851416]
[1759867947063,18.38265307,223.4,223.39,6.05851416]
[1759867947256,18.38265307,223.4,223.39,6.76851416]
[1759867948169,18.38265307,223.4,223.39,6.05851416]
[1759867948373,19.09265307,223.4,223.39,1.58203805]
[1759867948675,18.38265307,223.4,223.39,1.58203805]
[1759867950179,18.38265307,223.4,223.39,85.25851416]
[1759867952471,18.38265307,223.4,223.39,85.96851416]
[1759867953582,18.38265307,223.4,223.39,6.76851416]
[1759867954064,0.1,223.47,223.39,17.95970445]
[1759867954279,0.1,223.47,223.45,1.58203805]
[1759867954477,0.1,223.47,223.45,6.05723956]
[1759867954660,0.81,223.47,223.45,6.05723956]
[1759867955074,0.71,223.46,223.45,6.05723956]
[1759867955267,0.71,223.46,223.42,4.47584889]
[1759867955467,0.71,223.45,223.42,4.47584889]
[1759867955675,0.71,223.44,223.42,4.47584889]
[1759867956672,0.81,223.47,223.42,6.76788694]
[1759867956870,0.1,223.47,223.43,6.05754567]
[1759867957185,0.71,223.46,223.43,4.47550762]
[1759867957387,0.71,223.45,223.43,4.47550762]
[1759867958178,0.1,223.47,223.44,1.58203805]
[1759867958410,0.1,223.47,223.44,2.29203805]
[1759867958587,0.1,223.47,223.44,1.58203805]
[1759867958772,0.71,223.46,223.43,6.05754567]
[1759867959088,0.71,223.46,223.43,85.25754567]
[1759867959281,0.71,223.46,223.43,4.47550762]
[1759867959487,0.71,223.46,223.43,6.05754567]
[1759867959884,0.1,223.47,223.43,6.05754567]
[1759867960090,0.82,223.47,223.43,6.74754567]
[1759867960387,0.82,223.47,223.43,4.47550762]
[1759867960388,0.1,223.47,223.43,4.47550762]
[1759867960572,0.72,223.46,223.43,6.05754567]
[1759867961784,0.1,223.47,223.43,6.05754567]
[1759867961978,0.82,223.47,223.43,6.74754567]
[1759867962887,0.1,223.47,223.44,1.58203805]
[1759867963071,0.1,223.47,223.44,2.27203805]
[1759867963479,0.82,223.47,223.44,1.58203805]
[1759867963679,0.1,223.47,223.44,1.58203805]
[1759867963875,0.72,223.46,223.43,1.58203805]
[1759867964890,0.1,223.47,223.39,4.47647611]
[1759867964891,0.72,223.45,223.39,4.47647611]
[1759867965078,0.72,223.44,223.39,6.05851416]
[1759867965277,20.9,223.47,223.41,1.58203805]
[1759867965484,23.20203805,223.47,223.42,0.69]
[1759867965798,27.67693106,223.47,223.41,1.58203805]
[1759867965972,0.72,223.46,223.41,1.58203805]
[1759867966178,0.72,223.45,223.41,1.58203805]
[1759867966392,0.72,223.44,223.41,1.58203805]
[1759867966888,0.72,223.44,223.42,4.47587503]
[1759867967272,0.72,223.46,223.42,4.47587503]
[1759867967468,0.72,223.45,223.42,4.47587503]
[1759867967685,0.72,223.45,223.42,6.05791308]
[1759867968385,0.82,223.47,223.42,6.70791308]
[1759867968892,0.1,223.47,223.42,6.70791308]
[1759867969097,0.72,223.46,223.43,6.05764521]
[1759867969398,0.1,223.47,223.43,6.70764521]
[1759867969585,0.82,223.47,223.43,6.70764521]
[1759867969792,21.62,223.47,223.43,6.70764521]
[1759867969990,20.9,223.47,223.44,0.65]
[1759867970505,0.1,223.47,223.44,0.65]
[1759867971399,0.82,223.47,223.44,0.65]
[1759867972195,0.82,223.47,223.43,4.47560716]
[1759867972401,0.72,223.46,223.43,4.47560716]
[1759867972699,0.1,223.47,223.43,4.47560716]
[1759867972898,0.82,223.47,223.43,5.12560716]
[1759867973912,0.82,223.47,223.43,84.32560716]
[1759867974402,0.1,223.47,223.43,85.25764521]
[1759867974593,0.1,223.47,223.44,0.65]
[1759867974898,4.47467415,223.52,223.43,85.25764521]
[1759867974899,4.47467415,223.52,223.45,0.65]
[1759867975079,3.47467415,223.52,223.48,20.8]
[1759867975282,3.47467415,223.52,223.51,12.45851326]
[1759867975588,1e-08,223.53,223.52,38.00462741]
[1759867975999,1e-08,223.55,223.54,13.44]
[1759867976303,0.1,223.7,223.54,13.44]
[1759867976304,0.72,223.63,223.54,4.4734723]
[1759867976502,0.82,223.7,223.58,31.67647521]
[1759867976802,0.82,223.7,223.54,26.53353645]
[1759867976803,0.1,223.7,223.65,1.58203805]
[1759867976988,0.1,223.7,223.69,1.58203805]
[1759867977302,0.1,223.7,223.64,20.8]
[1759867977679,0.1,223.7,223.64,34.11919218]
[1759867977997,0.72,223.69,223.66,1.58203805]
[1759867978308,0.72,223.68,223.64,13.35003916]
[1759867978502,0.72,223.67,223.64,13.35003916]
[1759867978715,0.72,223.66,223.61,1.58203805]
[1759867979007,0.72,223.65,223.61,1.58203805]
[1759867979804,0.72,223.64,223.61,1.58203805]
[1759867980493,0.72,223.63,223.6,1.58203805]
[1759867980804,0.72,223.66,223.6,1.58203805]
[1759867980993,0.72,223.65,223.6,1.58203805]
[1759867981200,0.72,223.64,223.6,1.58203805]
[1759867981504,0.72,223.64,223.62,1.58203805]
[1759867981686,5.19123811,223.66,223.62,1.58203805]
[1759867982002,5.29042266,223.7,223.65,1.58203805]
[1759867982202,4.57042266,223.7,223.68,1.58203805]
[1759867982409,0.72,223.69,223.68,1.58203805]
[1759867983078,5.19047252,223.69,223.68,1.58203805]
[1759867983283,0.1,223.7,223.68,1.58203805]
[1759867983807,0.72,223.69,223.68,1.58203805]
[1759867989091,0.72,223.69,223.67,2.46252938]
[1759867990319,0.82,223.7,223.67,2.46252938]
[1759867990618,0.72,223.69,223.67,2.46252938]
[1759867991520,0.1,223.7,223.67,2.46252938]
[1759867991705,0.82,223.7,223.67,81.66252938]
[1759867992391,0.1,223.7,223.67,81.66252938]
[1759867992597,0.72,223.69,223.67,81.66252938]
[1759867993503,0.1,223.7,223.67,81.66252938]
[1759867993708,0.72,223.69,223.67,81.66252938]
[1759867994096,0.1,223.7,223.67,81.66252938]
[1759867994297,0.1,223.7,223.67,83.67085891]
[1759867994502,0.1,223.7,223.69,2.46252938]
[1759867995694,0.1,223.7,223.69,4.47047252]
[1759867995895,0.1,223.7,223.69,6.9330019]
[1759867996816,0.69,223.77,223.69,47.58665384]
[1759867997198,0.69,223.76,223.72,2.46252938]
[1759867997920,20.8,223.83,223.74,2.46252938]
[1759867997921,0.69,223.78,223.74,2.46252938]
[1759867998116,0.69,223.77,223.74,2.46252938]
[1759867998302,0.69,223.76,223.74,2.46252938]
[1759867999422,2.46252938,223.81,223.74,6.93194014]
[1759867999423,0.69,223.78,223.74,6.93194014]
[1759867999719,0.69,223.77,223.74,6.93194014]
[1759868000503,0.69,223.77,223.75,2.46252938]
[1759868000921,0.69,223.77,223.76,2.46252938]
[1759868001715,4.46824894,223.81,223.76,2.46252938]
[1759868001901,0.69,223.8,223.76,2.46252938]
[1759868002102,0.69,223.79,223.75,2.46252938]
[1759868002304,0.69,223.78,223.75,2.46252938]
[1759868002600,0.69,223.77,223.74,6.93191236]
[1759868002807,0.69,223.76,223.74,6.93191236]
[1759868003436,0.69,223.78,223.74,6.93191236]
[1759868003812,0.69,223.77,223.74,6.93191236]
[1759868004015,4.46833108,223.8,223.71,11.17501542]
[1759868004218,0.69,223.76,223.74,2.46252938]
[1759868004614,0.69,223.78,223.74,2.46252938]
[1759868004818,4.46768129,223.83,223.76,2.46252938]
[1759868005034,3.15252938,223.82,223.75,2.46252938]
[1759868005222,3.15252938,223.81,223.73,2.46252938]
[1759868005617,0.69,223.8,223.74,2.46252938]
[1759868005823,0.69,223.79,223.75,2.46252938]
[1759868006132,0.69,223.78,223.75,2.46252938]
[1759868006334,0.69,223.77,223.75,2.46252938]
[1759868006726,0.69,223.77,223.74,2.46252938]
[1759868007030,0.69,223.76,223.74,2.46252938]
[1759868007213,0.69,223.78,223.74,2.46252938]
[1759868007409,0.69,223.77,223.74,2.46252938]
[1759868007733,0.69,223.77,223.75,2.46252938]
[1759868011309,4.46827524,223.8,223.75,2.46252938]
[1759868011514,0.69,223.79,223.74,2.46252938]
[1759868011816,0.69,223.78,223.74,2.46252938]
[1759868012016,0.69,223.77,223.73,4.46958604]
[1759868012225,0.69,223.77,223.74,2.46252938]
[1759868012533,0.69,223.76,223.74,2.46252938]
[1759868012714,0.69,223.76,223.73,2.46252938]
[1759868013317,0.69,223.76,223.74,2.46252938]
[1759868013733,0.69,223.75,223.73,2.46252938]
[1759868014117,11.1691909,223.83,223.73,2.46252938]
[1759868014313,2.46252938,223.81,223.74,2.46252938]
[1759868014512,0.69,223.8,223.75,2.46252938]
[1759868014735,0.69,223.79,223.75,2.46252938]
[1759868014935,0.69,223.78,223.75,2.46252938]
[1759868015133,4.4684141,223.8,223.75,2.46252938]
[1759868015325,0.69,223.77,223.75,2.46252938]
[1759868015636,0.69,223.77,223.74,4.46942902]
[1759868015841,0.69,223.77,223.75,2.46252938]
[1759868016025,0.69,223.81,223.76,2.46252938]
[1759868016220,0.69,223.81,223.78,2.46252938]
[1759868016414,0.69,223.8,223.78,2.46252938]
[1759868016610,0.69,223.8,223.74,4.46942902]
[1759868016814,0.69,223.79,223.77,2.46252938]
[1759868017035,0.69,223.78,223.77,2.46252938]
[1759868018237,0.69,223.78,223.76,2.46252938]
[1759868019415,2.46252938,223.82,223.76,6.93156727]
[1759868019616,0.7,223.81,223.77,2.46252938]
[1759868019834,2.46252938,223.83,223.77,2.46252938]
[1759868020034,0.7,223.82,223.77,2.46252938]
[1759868020224,0.7,223.81,223.77,2.46252938]
[1759868020427,0.7,223.81,223.76,4.46903789]
[1759868020724,3.69331554,223.83,223.78,2.46252938]
[1759868020939,0.7,223.82,223.78,2.46252938]
[1759868021132,0.7,223.81,223.78,2.46252938]
[1759868021325,0.7,223.8,223.78,2.46252938]
[1759868021536,0.7,223.8,223.77,2.46252938]
[1759868022141,0.7,223.79,223.76,6.93156727]
[1759868022336,4.4681553,223.81,223.76,6.93156727]
[1759868022645,0.7,223.81,223.77,2.46252938]
[1759868023032,2.46252938,223.83,223.77,2.46252938]
[1759868023216,0.7,223.82,223.77,2.46252938]
[1759868023534,0.7,223.81,223.77,6.93136682]
[1759868023738,0.7,223.8,223.77,6.93136682]
[1759868024543,0.7,223.8,223.78,2.46252938]
[1759868026060,0.7,223.8,223.76,4.46889723]
[1759868026352,0.7,223.8,223.78,2.46252938]
[1759868027153,0.71,223.8,223.78,2.46252938]
[1759868027824,0.71,223.8,223.76,4.46889723]
[1759868028333,0.71,223.8,223.78,2.46252938]
[1759868028537,0.71,223.8,223.73,11.17385127]
[1759868028930,0.71,223.8,223.78,2.46252938]
[1759868029530,0.71,223.8,223.73,11.17385127]
[1759868029731,0.71,223.8,223.78,2.46252938]
[1759868030923,0.71,223.8,223.77,4.46879741]
[1759868031146,0.71,223.8,223.78,2.46252938]
[1759868031342,0.71,223.84,223.79,2.46252938]
[1759868031556,31.96712904,223.88,223.8,2.46252938]
[1759868031557,0.71,223.83,223.8,2.46252938]
[1759868031939,0.71,223.82,223.8,2.46252938]
[1759868032149,0.71,223.85,223.81,2.46252938]
[1759868032945,0.71,223.84,223.81,2.46252938]
[1759868034450,0.71,223.83,223.8,4.46819492]
[1759868034624,4.46712994,223.86,223.75,11.17283074]
[1759868034625,0.71,223.82,223.75,11.17283074]
[1759868034827,0.71,223.81,223.78,2.46252938]
[1759868035554,0.71,223.83,223.78,2.46252938]
[1759868035731,0.71,223.82,223.78,2.46252938]
[1759868036047,0.71,223.81,223.78,2.46252938]
[1759868036246,0.71,223.8,223.78,6.93113565]
[1759868036756,0.71,223.82,223.78,6.93113565]
[1759868037463,0.71,223.81,223.78,6.93113565]
[1759868037952,0.1,223.91,223.76,4.46899643]
[1759868037953,0.71,223.8,223.76,4.46899643]
[1759868038159,0.71,223.79,223.64,22.35736004]
[1759868038468,0.71,223.78,223.75,2.46252938]
[1759868039290,5.46953689,223.82,223.75,2.46252938]
[1759868039433,0.71,223.78,223.75,2.46252938]
[1759868039838,0.71,223.78,223.74,4.46939186]
[1759868040037,0.71,223.78,223.75,2.46252938]
[1759868044651,0.71,223.77,223.75,2.46252938]
[1759868045249,0.71,223.77,223.75,81.66252938]
[1759868046069,0.71,223.77,223.75,79.2]
[1759868046960,0.71,223.77,223.75,83.66927304]
[1759868047341,0.71,223.77,223.75,79.2]
[1759868047541,0.71,223.76,223.75,79.2]
[1759868047765,0.71,223.78,223.75,79.2]
[1759868047966,0.71,223.77,223.75,79.2]
[1759868048265,3.17252938,223.76,223.62,4.47187192]
[1759868048567,2.46252938,223.71,223.62,83.67187192]
[1759868048746,0.71,223.7,223.62,83.67187192]
[1759868048940,0.71,223.7,223.62,90.37926703]
[1759868049151,0.71,223.69,223.65,2.46252938]
[1759868049363,0.71,223.68,223.62,90.37926703]
[1759868049566,0.71,223.67,223.63,2.46252938]
[1759868050068,2.46252938,223.7,223.62,4.47187192]
[1759868050369,0.71,223.66,223.63,2.46252938]
[1759868050664,0.71,223.66,223.64,4.471472]
[1759868051767,0.71,223.68,223.64,6.0480392]
[1759868052145,0.71,223.68,223.64,4.471472]
[1759868052352,0.71,223.67,223.62,4.47171607]
[1759868052550,0.71,223.67,223.63,1.5765672]
[1759868053164,0.71,223.67,223.62,4.47171607]
[1759868053367,0.71,223.66,223.63,1.5765672]
[1759868055155,0.71,223.66,223.63,6.0481149]
[1759868055555,1.5765672,223.69,223.63,6.0481149]
[1759868055770,0.71,223.68,223.63,4.4715477]
[1759868055957,0.71,223.68,223.63,1.5765672]
[1759868056161,1.5765672,223.69,223.63,1.5765672]
[1759868056365,0.71,223.68,223.63,1.5765672]
[1759868056681,0.71,223.67,223.63,1.5765672]
[1759868056855,0.67,223.66,223.63,79.2]
[1759868057059,0.67,223.65,223.63,79.2]
[1759868057277,0.67,223.64,223.6,6.0487337]
[1759868057479,0.67,223.63,223.59,4.47246957]
[1759868057787,0.67,223.62,223.57,36.11271119]
[1759868057962,0.67,223.62,223.58,1.5765672]
[1759868058679,20.8,223.69,223.6,1.5765672]
[1759868058862,1.5765672,223.66,223.6,1.5765672]
[1759868059059,0.67,223.65,223.6,1.5765672]
[1759868059280,0.67,223.64,223.59,1.5765672]
[1759868059783,0.67,223.63,223.57,47.29489126]
[1759868059979,0.67,223.63,223.59,1.5765672]
[1759868060984,0.67,223.63,223.59,6.04889719]
[1759868061388,0.67,223.62,223.59,6.04889719]
[1759868061579,0.67,223.62,223.57,36.11271309]
[1759868061762,0.67,223.61,223.58,1.5765672]
[1759868062364,0.67,223.63,223.57,36.11271309]
[1759868062567,0.67,223.63,223.58,1.5765672]
[1759868062882,2.2465672,223.62,223.57,31.64]
[1759868063066,0.67,223.61,223.57,31.64]
[1759868063270,0.67,223.61,223.56,1.5765672]
[1759868063271,0.67,223.6,223.56,6.04962383]
[1759868063572,0.67,223.59,223.56,4.47305663]
[1759868063771,0.67,223.59,223.56,79.2]
[1759868063985,4.47160102,223.64,223.56,79.2]
[1759868063986,0.67,223.58,223.56,79.2]
[1759868064387,0.67,223.58,223.56,83.67305226]
[1759868065483,1.5765672,223.6,223.56,85.24961946]
[1759868065484,0.67,223.6,223.56,85.24961946]
[1759868065692,0.67,223.59,223.56,83.67305226]
[1759868065861,0.67,223.59,223.56,85.24961946]
[1759868066057,0.67,223.61,223.56,85.24961946]
[1759868066290,0.67,223.6,223.56,83.67305226]
[1759868066496,1.5765672,223.62,223.56,83.67305226]
[1759868066665,0.67,223.6,223.56,83.67305226]
[1759868066866,0.67,223.6,223.56,85.24961946]
[1759868067263,0.67,223.64,223.59,1.5765672]
[1759868067482,0.67,223.67,223.63,1.5765672]
[1759868067792,0.67,223.67,223.59,31.64]
[1759868067793,1.5765672,223.65,223.59,1.5765672]
[1759868067972,0.67,223.64,223.59,1.5765672]
[1759868068185,0.67,223.63,223.56,94.85573252]
[1759868068486,0.67,223.63,223.59,1.5765672]
[1759868068689,0.67,223.63,223.6,4.47227191]
[1759868068901,0.67,223.62,223.56,79.2]
[1759868069067,1.5765672,223.6,223.56,79.2]
[1759868069266,0.67,223.59,223.56,79.2]
[1759868069503,0.67,223.59,223.54,4.47347079]
[1759868069787,0.67,223.59,223.55,1.5765672]
[1759868070087,0.67,223.61,223.56,1.5765672]
[1759868070294,0.67,223.61,223.57,1.5765672]
[1759868070494,0.67,223.6,223.54,15.65715156]
[1759868070699,0.67,223.59,223.56,4.4730721]
[1759868070898,0.67,223.61,223.56,4.4730721]
[1759868071201,1.5765672,223.62,223.56,6.0496393]
[1759868071376,2.2465672,223.62,223.56,6.0496393]
[1759868071571,0.67,223.61,223.56,6.0496393]
[1759868071975,0.67,223.6,223.56,6.0496393]
[1759868072893,0.67,223.59,223.56,4.4730721]
[1759868073198,0.67,223.59,223.56,6.0496393]
[1759868074201,0.67,223.6,223.56,1.5765672]
[1759868074899,0.67,223.6,223.56,80.7765672]
[1759868075680,0.67,223.6,223.57,4.47287203]
[1759868076683,0.67,223.59,223.57,4.47287203]
[1759868076884,0.67,223.58,223.56,79.2]
[1759868077182,1.5765672,223.6,223.56,79.2]
[1759868077383,0.67,223.57,223.56,79.2]
[1759868077600,2.2465672,223.57,223.53,79.2]
[1759868077900,1.5765672,223.55,223.53,79.2]
[1759868078206,0.67,223.54,223.53,79.2]
[1759868078674,2.2465672,223.54,223.51,79.2]
[1759868078879,0.69,223.53,223.5,4.47425919]
[1759868079495,0.69,223.53,223.5,83.67425919]
[1759868079899,2.2665672,223.55,223.5,83.67425919]
[1759868080204,0.69,223.54,223.5,83.67425919]
[1759868081201,0.69,223.53,223.5,83.67425919]
[1759868081702,0.69,223.52,223.5,83.67425919]
[1759868082079,0.69,223.54,223.5,83.67425919]
[1759868082332,0.69,223.56,223.51,1.5765672]
[1759868082612,0.69,223.55,223.5,85.25082639]
[1759868082919,0.69,223.54,223.5,85.25082639]
[1759868084111,0.69,223.54,223.5,83.67425919]
[1759868084524,0.69,223.54,223.5,85.25082639]
[1759868084901,0.69,223.53,223.5,85.25082639]
[1759868085411,60.14743774,225.91,223.52,1.5765672]
[1759868085412,0.69,223.61,223.52,1.5765672]
[1759868085614,0.69,223.61,223.56,1.5765672]
[1759868085816,0.69,223.6,223.56,1.5765672]
[1759868086317,0.69,223.6,223.57,4.47287203]
[1759868087916,2.2765672,223.59,223.53,4.47352712]
[1759868088119,1.5765672,223.55,223.5,79.2]
[1759868088326,2.2765672,223.55,223.5,4.47427293]
[1759868088825,0.7,223.55,223.5,4.47427293]
[1759868089204,1.5765672,223.56,223.5,4.47427293]
[1759868089407,0.7,223.58,223.5,15.65995525]
[1759868089613,2.2765672,223.58,223.5,17.23652245]
[1759868089919,2.2765672,223.57,223.5,17.23652245]
[1759868091929,0.7,223.56,223.5,15.65995525]
[1759868092721,0.7,223.56,223.5,94.85995525]
[1759868093726,1.5765672,223.57,223.5,94.85995525]
[1759868094029,2.2765672,223.57,223.5,94.85995525]
[1759868096335,2.2765672,223.57,223.5,96.43652245]
[1759868098941,2.2765672,223.57,223.5,94.85995525]
[1759868099131,1.5765672,223.56,223.5,94.85995525]
[1759868099332,6.74948198,223.57,223.5,94.85995525]
[1759868099538,6.74948198,223.57,223.5,96.43652245]
[1759868100710,2.2765672,223.57,223.5,96.43652245]
[1759868101130,0.7,223.57,223.5,96.43652245]
[1759868101323,2.2765672,223.57,223.5,96.43652245]
[1759868102217,2.2765672,223.57,223.51,1.5765672]
[1759868102638,2.2765672,223.57,223.5,96.43652245]
[1759868102831,1.5765672,223.57,223.5,96.43652245]
[1759868103017,2.2765672,223.56,223.5,83.67427293]
[1759868103344,0.7,223.55,223.5,83.67427293]
[1759868103540,0.7,223.54,223.5,83.67427293]
[1759868103734,0.7,223.53,223.5,79.2]
[1759868103944,0.7,223.52,223.5,79.2]
[1759868104123,0.7,223.51,223.5,79.2]
[1759868104320,1.5765672,223.52,223.5,79.2]
[1759868104636,0.7,223.51,223.5,79.2]
[1759868104939,2.2765672,223.51,223.5,79.2]
[1759868106944,6.75063994,223.51,223.5,79.2]
[1759868107826,6.75063994,223.51,223.47,0.2]
[1759868107827,6.75063994,223.51,223.47,79.4]
[1759868108032,1.5765672,223.49,223.47,83.87486681]
[1759868108233,2.2765672,223.49,223.47,79.4]
[1759868108618,0.7,223.48,223.47,79.4]
[1759868108924,0.7,223.48,223.47,0.2]
[1759868109338,1.5765672,223.49,223.47,0.2]
[1759868109644,2.2765672,223.49,223.47,0.2]
[1759868110546,0.7,223.49,223.47,0.2]
[1759868111231,2.46788842,223.48,223.47,0.2]
[1759868111542,3.16788842,223.48,223.41,79.2]
[1759868111846,2.46788842,223.44,223.37,2.46788842]
[1759868112158,20.8,223.46,223.34,0.2]
[1759868112159,2.46788842,223.42,223.34,0.2]
[1759868112444,3.16788842,223.41,223.34,2.66788842]
[1759868112646,0.7,223.4,223.35,2.46788842]
[1759868112856,0.7,223.39,223.35,2.46788842]
[1759868113052,2.46788842,223.42,223.35,2.46788842]
[1759868113255,0.7,223.47,223.41,2.46788842]
[1759868113434,0.7,223.47,223.45,2.46788842]
[1759868113632,0.7,223.47,223.44,2.46788842]
[1759868114019,0.7,223.47,223.41,0.2]
[1759868114251,0.7,223.47,223.43,2.46788842]
[1759868114628,0.7,223.47,223.44,2.46788842]
[1759868115454,0.7,223.47,223.42,4.47587503]
[1759868115621,0.7,223.47,223.43,6.94342116]
[1759868117641,0.68,223.47,223.43,6.94342116]
[1759868118835,6.94246555,223.49,223.43,6.94342116]
[1759868119036,0.68,223.46,223.43,6.94342116]
[1759868119428,0.68,223.46,223.43,86.14342116]
[1759868120141,6.94246555,223.49,223.43,86.14342116]
[1759868120353,0.68,223.51,223.48,2.46788842]
[1759868120651,32.34,223.53,223.48,2.46788842]
[1759868120853,34.12788842,223.53,223.47,2.46788842]
[1759868121141,34.12788842,223.53,223.46,2.46788842]
[1759868121142,0.68,223.52,223.46,2.46788842]
[1759868121350,3.14788842,223.51,223.46,4.47507383]
[1759868121534,0.68,223.5,223.46,4.47507383]
[1759868121735,0.68,223.49,223.46,4.47507383]
[1759868122245,0.68,223.51,223.46,4.47507383]
[1759868122431,0.68,223.5,223.46,4.47507383]
[1759868123029,0.68,223.49,223.46,4.47507383]
[1759868123624,0.68,223.51,223.46,4.47507383]
[1759868123840,0.68,223.51,223.47,2.46788842]
[1759868124072,0.68,223.5,223.46,6.94296225]
[1759868124547,34.12788842,223.53,223.45,79.2]
[1759868124548,0.68,223.49,223.45,79.2]
[1759868124863,0.68,223.49,223.45,83.67526556]
[1759868125350,0.68,223.53,223.46,0.2]
[1759868125545,0.68,223.53,223.48,2.46788842]
[1759868125748,0.68,223.52,223.46,0.2]
[1759868126057,0.68,223.52,223.47,2.46788842]
[1759868126251,9.94582253,223.54,223.46,81.66788842]
[1759868126252,0.68,223.51,223.46,81.66788842]
[1759868126452,0.68,223.5,223.46,86.14277163]
[1759868126751,0.68,223.5,223.46,83.67488321]
[1759868126944,0.68,223.5,223.46,86.14277163]
[1759868128127,0.68,223.52,223.47,6.9426215]
[1759868128332,0.68,223.51,223.47,4.47473308]
[1759868128636,0.68,223.5,223.46,81.66788842]
[1759868128836,0.68,223.49,223.46,81.66788842]
[1759868129360,0.68,223.49,223.46,86.14289833]
[1759868130252,4.47386074,223.53,223.48,2.46788842]
[1759868130557,0.68,223.52,223.48,2.46788842]
[1759868130734,0.68,223.51,223.48,2.46788842]
[1759868130930,9.94588564,223.54,223.48,2.46788842]
[1759868131154,0.68,223.53,223.48,2.46788842]
[1759868131343,0.68,223.52,223.48,81.66788842]
[1759868131549,0.68,223.51,223.48,79.2]
[1759868132372,0.68,223.5,223.48,79.2]
[1759868132756,0.68,223.49,223.48,79.2]
[1759868132960,0.68,223.5,223.48,79.2]
[1759868133660,0.68,223.5,223.46,6.94284124]
[1759868134540,0.68,223.5,223.47,2.46788842]
[1759868134942,4.47387869,223.52,223.47,2.46788842]
[1759868135138,0.68,223.51,223.47,2.46788842]
[1759868135345,0.68,223.5,223.47,2.46788842]
[1759868136155,0.68,223.5,223.47,6.94274556]
[1759868138162,4.47271108,223.58,223.49,2.46788842]
[1759868138354,8.15966863,223.58,223.53,2.46788842]
[1759868138547,0.68,223.57,223.53,2.46788842]
[1759868139070,0.68,223.57,223.54,2.46788842]
[1759868141758,0.68,223.57,223.52,4.47387258]
[1759868141938,0.68,223.57,223.53,2.46788842]
[1759868142340,0.68,223.57,223.52,4.67387258]